{"text_format":"1","workbook":"xlsx","n_sheets":5,"sheets":["NOMBRE","D15","D16","Control","MACROS"],"not_rendered":{"charts":0,"images":0,"macros":1,"external_links":0,"defined_names":9,"comments":1,"pivot_tables":0},"unopened":[],"bounds":{"document_bytes":16777216,"sheet_cells":100000,"rows_first":2000,"rows_last":500,"rows_between":2000,"halvings":0,"cell_chars":16384,"cell_head_chars":4096},"cells_cut":0,"cells_raw":0,"read":"whole","date_system":"1900"}

{"sheet":"NOMBRE","index":0,"n_rows":36,"n_cols":33,"rows_kept":36,"cut":false,"hidden":false,"merged":[[16,1,18,1],[0,0,0,1],[0,2,0,6],[8,0,8,1],[14,0,14,1]]}
["DATOS DEL ESTABLECIMIENTO",null,"CÓDIGOS"]
["NOMBRE DE COMUNA",null,null,null,null,null,null,null,{"$f":"IF(OR(NOMBRE!C2=\"\",NOMBRE!E2=\"\",NOMBRE!D2=\"\",NOMBRE!E2=\"\",NOMBRE!F2=\"\",NOMBRE!G2=\"\"),\"Falta Cód. Com.\",\"\")","v":"Falta Cód. Com."},null,null,null,null,null,null,null,null,null,null,null,null,null,null,null,null,null,null,null,null,null,null,null,{"$f":"IF(I2>\"\",1,0)","v":1}]
["NOMBRE ESTABLECIMIENTO/ESTRATEGIA",null,null,null,null,null,null,null,{"$f":"IF(OR(NOMBRE!C3=\"\",NOMBRE!D3=\"\",NOMBRE!E3=\"\",NOMBRE!F3=\"\",NOMBRE!G3=\"\",NOMBRE!H3=\"\"),\"Falta Cód. Estab.\",\"\")","v":"Falta Cód. Estab."},null,null,null,null,null,null,null,null,null,null,null,null,null,null,null,null,null,null,null,null,null,null,null,{"$f":"IF(I3>\"\",1,0)","v":1}]
["TIPO DE ESTABLECIMIENTO/ESTRATEGIA",null,null,null,null,null,null,null,{"$f":"IF(OR(NOMBRE!B4=\"\"),\"Falta TIPO Estab.\",\"\")","v":"Falta TIPO Estab."},null,null,null,null,null,null,null,null,null,null,null,null,null,null,null,null,null,null,null,null,null,null,null,{"$f":"IF(I4>\"\",1,0)","v":1}]
["DEPENDENCIA",null,null,null,null,null,null,null,{"$f":"IF(OR(NOMBRE!B5=\"\"),\"Falta DEPENDENCIA Estab.\",\"\")","v":"Falta DEPENDENCIA Estab."},null,null,null,null,null,null,null,null,null,null,null,null,null,null,null,null,null,null,null,null,null,null,null,{"$f":"IF(I5>\"\",1,0)","v":1}]
["MES:",null,null,null,null,null,null,null,{"$f":"IF(OR(NOMBRE!C6=\"\",NOMBRE!D6=\"\"),\"Falta el Mes\",\"\")","v":"Falta el Mes"},null,null,null,null,null,null,null,null,null,null,null,null,null,null,null,null,null,null,null,null,null,null,null,{"$f":"IF(I6>\"\",1,0)","v":1}]
["AÑO:",2018,null,null,null,null,null,null,null,null,null,null,null,null,null,null,null,null,null,null,null,null,null,null,null,null,null,null,null,null,null,null,{"$f":"SUM(AG2:AG6)","v":5}]
[]
["Versión 1.0: ENERO 2018"]
[]
["Director Servicio de Salud o Director Establecimiento",null,null,null,null,null,null,null,null,null,null,null,null,null,null,null,null,null,null,null,null,null,null,null,null,null,"ENERO","Establecimiento de Mayor Complejidad (EMAYC)","SERVICIO DE SALUD"]
["Jefe de Estadisticas",null,null,null,null,null,null,null,null,null,null,null,null,null,null,null,null,null,null,null,null,null,null,null,null,null,"FEBRERO","Establecimiento de Mediana Complejidad (EMEDC)","MUNICIPAL"]
[null,null,null,null,null,null,null,null,null,null,null,null,null,null,null,null,null,null,null,null,null,null,null,null,null,null,"MARZO","Establecimiento de Menor Complejidad (EMENC)","OTRA INSTITUCIÓN (Delegado)"]
[null,null,null,null,null,null,null,null,null,null,null,null,null,null,null,null,null,null,null,null,null,null,null,null,null,null,"ABRIL","Centros de Diagnóstico Terapéutico (CDT)"]
["MINSAL - DEIS",null,null,null,null,null,null,null,null,null,null,null,null,null,null,null,null,null,null,null,null,null,null,null,null,null,"MAYO","Centro de Referencia de Salud (CRS)"]
[null,null,null,null,null,null,null,null,null,null,null,null,null,null,null,null,null,null,null,null,null,null,null,null,null,null,"JUNIO","Consultorio General Urbano (CGU)"]
[null,"SERIE D",null,null,null,null,null,null,null,null,null,null,null,null,null,null,null,null,null,null,null,null,null,null,null,null,"JULIO","Consultorio General Urbano (CGU) - CESFAM"]
[null,null,null,null,null,null,null,null,null,null,null,null,null,null,null,null,null,null,null,null,null,null,null,null,null,null,"AGOSTO","Consultorio General Urbano(CGU) con SAPU/SAR/SUR"]
[null,null,null,null,null,null,null,null,null,null,null,null,null,null,null,null,null,null,null,null,null,null,null,null,null,null,"SEPTIEMBRE","Consultorio General Urbano (CGU) - CESFAM con SAPU/SAR/SUR"]
[null,null,null,null,null,null,null,null,null,null,null,null,null,null,null,null,null,null,null,null,null,null,null,null,null,null,"OCTUBRE","Consultorio General Rural (CGR)"]
[null,null,null,null,null,null,null,null,null,null,null,null,null,null,null,null,null,null,null,null,null,null,null,null,null,null,"NOVIEMBRE","Consultorio General Rural (CGR) - CESFAM"]
[null,null,null,null,null,null,null,null,null,null,null,null,null,null,null,null,null,null,null,null,null,null,null,null,null,null,"DICIEMBRE","Consultorio General Rural (CGR) con SAPU/SAR/SUR"]
[null,null,null,null,null,null,null,null,null,null,null,null,null,null,null,null,null,null,null,null,null,null,null,null,null,null,null,"Consultorio General Rural (CGR) - CESFAM con SAPU/SAR/SUR"]
[null,null,null,null,null,null,null,null,null,null,null,null,null,null,null,null,null,null,null,null,null,null,null,null,null,null,null,"Posta de Salud Rural (PSR)"]
[null,null,null,null,null,null,null,null,null,null,null,null,null,null,null,null,null,null,null,null,null,null,null,null,null,null,null,"Centro Comunitario de Salud Familiar (CECOF)"]
[null,null,null,null,null,null,null,null,null,null,null,null,null,null,null,null,null,null,null,null,null,null,null,null,null,null,null,"Consultorio de Salud Mental (COSAM)"]
[null,null,null,null,null,null,null,null,null,null,null,null,null,null,null,null,null,null,null,null,null,null,null,null,null,null,null,"Programa de Reparación y Atención Integral de Salud (PRAIS)"]
[null,null,null,null,null,null,null,null,null,null,null,null,null,null,null,null,null,null,null,null,null,null,null,null,null,null,null,"Centro de Atención Funcionarios (CAF)"]
[null,null,null,null,null,null,null,null,null,null,null,null,null,null,null,null,null,null,null,null,null,null,null,null,null,null,null,"Clínica Dental Móvil (CDM)"]
[null,null,null,null,null,null,null,null,null,null,null,null,null,null,null,null,null,null,null,null,null,null,null,null,null,null,null,"Dirección Servicio de Salud (DSS)"]
[null,null,null,null,null,null,null,null,null,null,null,null,null,null,null,null,null,null,null,null,null,null,null,null,null,null,null,"Servicio de Atención Primaria de Urgencia (SAPU)"]
[null,null,null,null,null,null,null,null,null,null,null,null,null,null,null,null,null,null,null,null,null,null,null,null,null,null,null,"Servicio de Atención Primaria de Urgencia de Alta Resolución (SAR)"]
[null,null,null,null,null,null,null,null,null,null,null,null,null,null,null,null,null,null,null,null,null,null,null,null,null,null,null,"Laboratorio Clínico o Dental"]
[null,null,null,null,null,null,null,null,null,null,null,null,null,null,null,null,null,null,null,null,null,null,null,null,null,null,null,"Servicio de Atención Primaria de Urgencia Dental (SAPUDENT)"]
[null,null,null,null,null,null,null,null,null,null,null,null,null,null,null,null,null,null,null,null,null,null,null,null,null,null,null,"Centro de Rehabilitación (CR)"]
[null,null,null,null,null,null,null,null,null,null,null,null,null,null,null,null,null,null,null,null,null,null,null,null,null,null,null,"Hospital de Campaña"]

{"sheet":"D15","index":1,"n_rows":157,"n_cols":35,"rows_kept":157,"cut":false,"hidden":false,"merged":[[45,10,45,11],[70,12,70,14],[70,10,70,11],[46,10,48,10],[46,11,48,11],[46,14,48,14],[71,12,73,12],[71,10,73,10],[71,11,73,11],[71,14,73,14],[46,4,48,4],[83,13,85,13],[83,14,83,15],[83,3,83,4],[95,0,95,1],[86,0,86,1],[87,0,87,1],[88,0,88,1],[90,0,90,1],[91,0,91,1],[83,6,83,12],[84,15,85,15],[84,14,85,14],[92,0,92,1],[84,4,85,4],[84,11,85,11],[84,12,85,12],[84,9,85,9],[84,10,85,10],[93,0,93,1],[94,0,94,1],[46,12,48,12],[46,13,48,13],[74,0,74,1],[28,0,30,0],[65,0,67,0],[46,9,48,9],[45,3,45,9],[54,0,59,0],[60,0,64,0],[68,0,68,1],[79,0,79,1],[34,14,36,14],[34,4,36,4],[34,13,36,13],[41,0,41,1],[34,12,36,12],[34,9,36,9],[34,10,36,10],[34,7,36,7],[34,8,36,8],[37,0,37,1],[34,11,36,11],[34,6,36,6],[34,5,36,5],[45,12,45,14],[46,3,48,3],[71,13,73,13],[9,9,11,9],[9,7,11,7],[9,8,11,8],[33,10,33,11],[42,0,42,1],[83,0,85,1],[83,2,85,2],[84,3,85,3],[39,0,39,1],[84,6,84,8],[83,5,85,5],[33,2,36,2],[23,0,26,0],[49,0,53,0],[45,0,48,0],[45,1,48,1],[45,2,48,2],[46,8,48,8],[46,5,48,5],[46,6,48,6],[46,7,48,7],[71,3,73,3],[71,4,73,4],[71,5,73,5],[5,0,5,10],[6,0,6,16],[8,0,11,0],[8,1,11,1],[8,2,11,2],[8,3,8,9],[33,12,33,14],[9,11,11,11],[8,10,8,11],[8,12,8,14],[9,14,11,14],[31,0,31,1],[12,0,16,0],[17,0,22,0],[9,5,11,5],[33,0,36,1],[9,6,11,6],[9,3,11,3],[9,4,11,4],[33,3,33,9],[34,3,36,3],[9,10,11,10],[9,13,11,13],[9,12,11,12],[78,0,78,1],[76,0,76,1],[97,0,98,1],[97,2,97,3],[77,0,77,1],[71,6,73,6],[71,7,73,7],[102,0,102,1],[103,0,103,1],[101,0,101,1],[99,0,99,1],[100,0,100,1],[49,15,49,21],[51,15,51,21],[54,15,54,21],[55,15,55,21],[56,15,56,21],[57,15,57,21],[75,15,75,21],[70,0,73,1],[70,2,73,2],[70,3,70,9],[71,8,73,8],[71,9,73,9]]}
["SERVICIO DE SALUD"]
[{"$f":"CONCATENATE(\"COMUNA: \",NOMBRE!$B$2,\" - \",\"( \",NOMBRE!$C$2,NOMBRE!$D$2,NOMBRE!$E$2,NOMBRE!$F$2,NOMBRE!$G$2,\" )\")","v":"COMUNA:  - (  )"}]
[{"$f":"CONCATENATE(\"ESTABLECIMIENTO/ESTRATEGIA: \",NOMBRE!$B$3,\" - \",\"( \",NOMBRE!$C$3,NOMBRE!$D$3,NOMBRE!$E$3,NOMBRE!$F$3,NOMBRE!$G$3,NOMBRE!$H$3,\" )\")","v":"ESTABLECIMIENTO/ESTRATEGIA:  - (  )"}]
[{"$f":"CONCATENATE(\"MES: \",NOMBRE!$B$6,\" - \",\"( \",NOMBRE!$C$6,NOMBRE!$D$6,\" )\")","v":"MES:  - (  )"}]
[{"$f":"CONCATENATE(\"AÑO: \",NOMBRE!$B$7)","v":"AÑO: 2018"}]
[]
["REM-D.15 - Programa Nacional de Alimentación Complementaria (PNAC)"]
["Sección A: PNAC - Cantidad distribuida (kg) a personas intrasistema"]
["Subprogramas","Productos","Total","Menores a 6 años",null,null,null,null,null,null,"Gestantes",null,"Madre con hijo/a menor a 6 meses"]
[null,null,null,"0 - 2 meses","3 - 5 meses","6 - 11 meses","12 - 17 meses"," 18 - 23 meses"," 24 - 47 meses"," 48 - 71 meses","Normal, sobrepeso y obesas","Bajo peso","Lactancia \nmaterna \nexclusiva","Lactancia \nmaterna \npredominante","Fórmula\npredominante o exclusiva"]
[]
[]
["Básico","Leche Purita Fortificada (LPF)",{"$f":"SUM(D13:K13)+M13+N13+O13+L13","v":0},null,null,null,null,null,null,null,null,null,null,null,null,{"$f":"AA13&\" \"&AB13","v":" "}]
[null,"Purita Cereal (PC)",{"$f":"SUM(H14:J14)","v":0}]
[null,"Purita Mamá (PM)",{"$f":"SUM(M15:O15)+K15+L15","v":0},null,null,null,null,null,null,null,null,null,null,null,null,{"$f":"AA15&\" \"&AB15&\" \"&AC15&\" \"&AD15","v":"   "},null,null,null,null,null,null,null,null,null,null,{"$f":"IF(K13+K15=K38,\"\",\" No olvide escribir el Nº Correcto según kg por persona que retira alimento de la sección B en el grupo de Gestantes Normal, Sobrepeso y Obesas\")","v":""},{"$f":"IF(M13+M15=(M38*2),\"\",\"No olvide escribir el Nº Correcto según kg por persona que retira alimento de la sección B en el grupo de Madre con hijo/a menor a 6 meses con Lactancia materna exclusiva\")","v":""},{"$f":"IF(N13+N15=N38,\"\",\"No olvide escribir el Nº Correcto según kg por persona que retira alimento de la sección B en el grupo de Madre con hijo/a menor a 6 meses con Lactancia materna predominante\")","v":""},{"$f":"IF(O13+O15=O38,\"\",\"No olvide escribir el Nº Correcto según kg por persona que retira alimento de la sección B en el grupo de Madre con hijo/a menor a 6 meses con Formula predominantes o exclusiva\")","v":""},null,{"$f":"IF(K15=K38,0,1)","v":0},{"$f":"IF(M15=(M38*2),0,1)","v":0},{"$f":"IF(N15=N38,0,1)","v":0},{"$f":"IF(O15=O38,0,1)","v":0}]
[null,"Fórmula de Inicio (FI)",{"$f":"SUM(D16:F16)","v":0}]
[null,"Subtotal",{"$f":"SUM(D17:O17)","v":0},{"$f":"SUM(D13:D16)","v":0},{"$f":"SUM(E13:E16)","v":0},{"$f":"SUM(F13:F16)","v":0},{"$f":"SUM(G13:G16)","v":0},{"$f":"SUM(H13:H16)","v":0},0,0,0,0,0,0,0]
["Refuerzo","Leche Purita Fortificada (LPF)",{"$f":"SUM(D18:J18)+SUM(L18:O18)+K18","v":0},null,null,null,null,null,null,null,null,null,null,null,null,{"$f":"AA18&\" \"&AB18","v":" "},null,null,null,null,null,null,null,null,null,null,{"$f":"IF(K18 = K23, \"\",\"el valor de la Leche Purita Fortificada (LPF) deben ser igual al subotal Normal, sobrepeso y obesas del gestante\")","v":""}]
[null,"Purita Cereal (PC)",{"$f":"SUM(H19:J19)","v":0}]
[null,"Mi Sopita (MS)",{"$f":"SUM(E20:J20)","v":0},null,null,null,null,null,null,null,null,null,null,null,null,{"$f":"AA20&\" \"&AB20&\" \"&AC20&\" \"&AD20&\" \"&AA21&\" \"&AB21","v":"     "}]
[null,"Purita Mamá (PM)",{"$f":"SUM(K21:O21)","v":0}]
[null,"Fórmula de Inicio (FI)",{"$f":"SUM(D22:F22)","v":0}]
[null,"Subtotal",{"$f":"SUM(D23:O23)","v":0},{"$f":"SUM(D18:D22)","v":0},0,0,0,0,0,0,0,0,0,0,0]
["Prematuros Extremos","Fórmula de Prematuros (FP)",{"$f":"SUM(D24:F24)","v":0}]
[null,"Fórmula de Continuación (FC)",{"$f":"F25","v":0}]
[null,"Leche Purita Fortificada (LPF)",{"$f":"SUM(G26:H26)","v":0}]
[null,"Mi Sopita (MS)",{"$f":"SUM(E27:H27)","v":0}]
[null,"Subtotal",{"$f":"SUM(D28:O28)","v":0},{"$f":"D24","v":0},{"$f":"SUM(E24,E27)","v":0},{"$f":"SUM(F24,F25,F27)","v":0},{"$f":"SUM(G26:G27)","v":0},{"$f":"SUM(H26:H27)","v":0},0,0,0,0,0,0,0]
["Alergia a la proteína de la leche de vaca","Fórmula Extensamente Hidrolizada (FEH)",{"$f":"SUM(D29:H29)","v":0}]
[null,"Fórmula Aminoacídica (FAA)",{"$f":"SUM(D30:H30)","v":0}]
[null,"Subtotal",{"$f":"SUM(D31:O31)","v":0},{"$f":"SUM(D29:D30)","v":0},{"$f":"SUM(E29:E30)","v":0},0,0,0,0,0,0,0,0,0,0]
["Total",null,{"$f":"SUM(D32:O32)","v":0},{"$f":"+D17+D23+D31+D28","v":0},{"$f":"+E17+E23+E31+E28","v":0},0,0,0,0,0,0,0,0,0,0]
["Sección B: PNAC - Número de personas intrasistema que retiran"]
["Subprogramas",null,"Total","Menores a 6 años",null,null,null,null,null,null,"Gestantes",null,"Madre con hijo/a menor a 6 meses"]
[null,null,null,"0 - 2 meses","3 - 5 meses","6 - 11 meses","12 - 17 meses"," 18 - 23 meses"," 24 - 47 meses"," 48 - 71 meses","Normal, sobrepeso y obesas","Bajo peso","Lactancia \nmaterna \nexclusiva","Lactancia \nmaterna \npredominante","Fórmula\npredominante o exclusiva"]
[]
[]
["Básico",null,{"$f":"SUM(D38:K38)+M38+N38+O38","v":0},null,null,null,null,null,null,null,null,null,null,null,null,{"$f":"$AA38&\" \"&$AB38&\" \"&$AC38&\" \"&$AD38&\" \"&$AA39&\" \"&$AB39&\" \"&$AC39&\" \"&$AD39","v":"       "}]
["Refuerzo",null,{"$f":"SUM(D39:J39)+SUM(L39:O39)","v":0},null,null,null,null,null,null,null,null,null,null,null,null,{"$f":"$AA42&\" \"&$AB42&\"\"&$AC42&\"\"&$AD42&\"\"&$AA40&\" \"&$AB40&\"\"&$AC40&\"\"&$AD40&\"\"&$AA43&\" \"&$AB43&\" \"&$AC43","v":"    "}]
["Prematuros Extremos",null,{"$f":"SUM(D40:H40)","v":0}]
["Alergia a la Proteína de la leche de vaca",null,{"$f":"SUM(D41:H41)","v":0}]
["TOTAL",null,{"$f":"SUM(D42:O42)","v":0},{"$f":"SUM(D38:D41)","v":0},{"$f":"SUM(E38:E41)","v":0},0,0,{"$f":"SUM(H38:H41)","v":0},{"$f":"SUM(I38:I39)","v":0},{"$f":"SUM(J38:J39)","v":0},{"$f":"K38","v":0},{"$f":"L39","v":0},{"$f":"SUM(M38:M39)","v":0},{"$f":"SUM(N38:N39)","v":0},{"$f":"SUM(O38:O39)","v":0}]
["Programas Sociales (*)",null,{"$f":"SUM(D43:O43)","v":0}]
["Nota: (*) Información referencial, ya incluida en los subprogramas."]
["Sección C: PNAC: Cantidad distribuida (kg) a personas extrasistema (incluye modalidad libre elección)"]
["Subprogramas","Productos","Total","Menores a 6 años",null,null,null,null,null,null,"Gestantes",null,"Madre con hijo/a menor a 6 meses"]
[null,null,null,"0 - 2 meses","3 - 5 meses","6 - 11 meses","12 - 17 meses"," 18 - 23 meses"," 24 - 47 meses"," 48 - 71 meses","Normal, sobrepeso y obesas","Bajo peso","Lactancia \nmaterna \nexclusiva","Lactancia \nmaterna \npredominante","Fórmula\npredominante o exclusiva"]
[]
[]
["Básico","Leche Purita Fortificada (LPF)",{"$f":"SUM(D50:K50)+M50+N50+O50","v":0},null,null,null,null,null,null,null,null,null,null,null,null,{"$f":"AA50&\" \"&AB50","v":" "}]
[null,"Purita Cereal (PC)",{"$f":"SUM(H51:J51)","v":0}]
[null,"Purita Mamá (PM)",{"$f":"SUM(M52:O52)+K52","v":0},null,null,null,null,null,null,null,null,null,null,null,null,{"$f":"AA52&\" \"&AB52&\" \"&AC52&\" \"&AD52","v":"   "},null,null,null,null,null,null,null,null,null,null,{"$f":"IF(K50+K52=K75,\"\",\" No olvide escribir el Nº Correcto según kg por persona que retira alimento de la sección D en el grupo de Gestantes Normal, Sobrepeso y Obesas.\")","v":""},{"$f":"IF(M50+M52=M75*2,\"\",\"No olvide escribir el Nº Correcto según kg por persona que retira alimento de la sección D en el grupo de Madre con hijo/a menor a 6 meses con Lactancia materna exclusiva\")","v":""},{"$f":"IF(N50+N52=N75,\"\",\"No olvide escribir el Nº Correcto según kg por persona que retira alimento de la sección D en el grupo de Madre con hijo/a menor a 6 meses con Lactancia materna predominante\")","v":""},{"$f":"IF(O50+O52=O75,\"\",\"No olvide escribir el Nº Correcto según kg por persona que retira alimento de la sección D en el grupo de Madre con hijo/a menor a 6 meses con Fórmula predominantes o exclusiva\")","v":""},null,{"$f":"IF(K52=K75,0,1)","v":0},{"$f":"IF(M52=(M75*2),0,1)","v":0},{"$f":"IF(N52=N75,0,1)","v":0},{"$f":"IF(O52=O75,0,1)","v":0}]
[null,"Fórmula de Inicio (FI)",{"$f":"SUM(D53:F53)","v":0}]
[null,"Subtotal",{"$f":"SUM(D54:O54)","v":0},{"$f":"SUM(D50:D53)","v":0},0,0,0,0,0,0,0,{"$f":"SUM(L50:L53)","v":0},0,0,0]
["Refuerzo","Leche Purita Fortificada (LPF)",{"$f":"SUM(D55:O55)","v":0},null,null,null,null,null,null,null,null,null,null,null,null,{"$f":"AA55&\" \"&AB55","v":" "}]
[null,"Purita Cereal (PC)",{"$f":"SUM(H56:J56)","v":0},null,null,null,null,null,null,null,null,null,null,null,null,{"$f":"AA56&\" \"&AB56&\" \"&AC56&\" \"&AD56","v":"   "}]
[null,"Mi Sopita (MS)",{"$f":"SUM(E57:J57)","v":0},null,null,null,null,null,null,null,null,null,null,null,null,{"$f":"AA57&\" \"&AB57&\" \"&AC57&\" \"&AD57&\" \"&AA58&\" \"&AB58","v":"     "},null,null,null,null,null,null,null,null,null,null,null,null,null,null,null,{"$f":"IF(K57=K80,0,1)","v":0},{"$f":"IF(M57=(M80*2),0,1)","v":0},{"$f":"IF(N57=N80,0,1)","v":0},{"$f":"IF(O57=O80,0,1)","v":0}]
[null,"Purita Mamá (PM)",{"$f":"SUM(K58:O58)","v":0},null,null,null,null,null,null,null,null,null,null,null,null,{"$f":"AC58&\" \"&AD58","v":" "}]
[null,"Fórmula de Inicio (FI)",{"$f":"SUM(D59:F59)","v":0}]
[null,"Subtotal",{"$f":"SUM(D60:O60)","v":0},{"$f":"SUM(D55:D59)","v":0},0,0,0,0,0,0,0,0,0,0,0]
["Prematuros Extremos","Fórmula de Prematuros (FP)",{"$f":"SUM(D61:F61)","v":0}]
[null,"Fórmula de Continuación (FC)",{"$f":"F62","v":0}]
[null,"Leche Purita Fortificada (LPF)",{"$f":"SUM(G63:H63)","v":0}]
[null,"Mi Sopita (MS)",{"$f":"SUM(E64:H64)","v":0}]
[null,"Subtotal",{"$f":"SUM(D65:O65)","v":0},{"$f":"SUM(D61:D64)","v":0},0,0,0,0,0,0,0,0,0,0,0]
["Alergia a la proteína de la leche de vaca **","Fórmula Extensamente Hidrolizada (FEH)",{"$f":"SUM(D66:H66)","v":0}]
[null,"Fórmula Aminoacídica (FAA)",{"$f":"SUM(D67:H67)","v":0}]
[null,"Subtotal",{"$f":"SUM(D68:O68)","v":0},{"$f":"SUM(D66:D67)","v":0},{"$f":"SUM(E66:E67)","v":0},0,0,0,0,0,0,0,0,0,0]
["Total",null,{"$f":"SUM(D69:O69)","v":0},{"$f":"+D54+D60+D65+D68","v":0},{"$f":"+E54+E60+E65+E68","v":0},{"$f":"+F54+F60+F65+F68","v":0},0,0,0,0,0,0,{"$f":"+M54+M60+M65+M68","v":0},{"$f":"+N54+N60+N65+N68","v":0},{"$f":"+O54+O60+O65+O68","v":0}]
["Sección D: PNAC - Número de personas extrasistema que retiran"]
["Subprogramas",null,"Total","Menores a 6 años",null,null,null,null,null,null,"Gestantes",null,"Madre con hijo/a menor a 6 meses"]
[null,null,null,"0 - 2 meses","3 - 5 meses","6 - 11 meses","12 - 17 meses"," 18 - 23 meses"," 24 - 47 meses"," 48 - 71 meses","Normal, sobrepeso y obesas","Bajo peso","Lactancia \nmaterna \nexclusiva","Lactancia \nmaterna \npredominante","Fórmula\npredominante o exclusiva"]
[]
[]
["Básico",null,{"$f":"SUM(D75:K75)+SUM(M75:O75)","v":0}]
["Refuerzo",null,{"$f":"SUM(D76:J76)+SUM(L76:O76)","v":0},null,null,null,null,null,null,null,null,null,null,null,null,{"$f":"$AA79&\" \"&$AB79&\"\"&$AC79&\"\"&$AD79&\"\"&$AA77&\" \"&$AB77&\"\"&$AC77&\"\"&$AD77&\"\"&#REF!&\" \"&#REF!&\" \"&#REF!","v":{"$error":"#REF!"}}]
["Prematuros Extremos",null,{"$f":"SUM(D77:H77)","v":0}]
["Alergia a la Proteína de la leche de vaca **",null,{"$f":"SUM(D78:H78)","v":0}]
["Total",null,{"$f":"SUM(D79:O79)","v":0},{"$f":"SUM(D75:D78)","v":0},{"$f":"SUM(E75:E78)","v":0},0,0,0,0,0,0,0,0,0,0]
["Programas Sociales (*)",null,{"$f":"SUM(D80:O80)","v":0}]
["Nota: (*) Información referencial, ya incluida en los subprogramas."]
["(**) Exclusivamente para Fuerzas Armadas y de Orden"]
["Sección E: Existencia y movimiento total de productos (Intrasistema y Extrasistema)"]
["Productos",null,"Saldo Mes Anterior","Ingresos",null,"Total Disponible","Egresos",null,null,null,null,null,null,"Saldo mes siguiente","Necesidades"]
[null,null,null,"Planta","Por traspaso",null,"Distribuido",null,null,"Mermas (Incluye faltantes)","Otros: \ndemostra-\nciones, dona-\nciones, etc","Traspaso","Total Egresos",null,"Bodega del \nestablecimiento","Bodegas centrales"]
[null,null,null,null,null,null,"Intrasistema","Extrasistema","Total"]
["Leche Purita Fortificada (LPF)",null,null,null,null,{"$f":"SUM(C87:E87)","v":0},{"$f":"C13+C18+C26","v":0},{"$f":"+C50+C55+C63","v":0},{"$f":"+G87+H87","v":0},null,null,null,{"$f":"SUM(I87:L87)","v":0},{"$f":"F87-M87","v":0}]
["Purita Cereal (PC)",null,null,null,null,0,{"$f":"C14+C19","v":0},{"$f":"+C51+C56","v":0},0,null,null,null,{"$f":"SUM(I88:L88)","v":0},0]
["Mi Sopita (MS)",null,null,null,null,0,{"$f":"C27+C20","v":0},{"$f":"+C57+C64","v":0},{"$f":"+G89+H89","v":0},null,null,null,0,0]
["Purita Mamá (PM)",null,null,null,null,0,{"$f":"+C15+C21","v":0},{"$f":"+C52+C58","v":0},{"$f":"+G90+H90","v":0},null,null,null,0,0]
["Fórmula de Inicio (FI)",null,null,null,null,0,{"$f":"C16+C22","v":0},{"$f":"+C53+C59","v":0},{"$f":"+G91+H91","v":0},null,null,null,0,0]
["Fórmula Prematuros",null,null,null,null,0,{"$f":"C24","v":0},{"$f":"C61","v":0},{"$f":"+G92+H92","v":0},null,null,null,0,0]
["Fórmula Continuación",null,null,null,null,0,{"$f":"C25","v":0},{"$f":"C62","v":0},{"$f":"+G93+H93","v":0},null,null,null,0,0]
["Formula Extensamente Hidrolizada (FEH)",null,null,null,null,{"$f":"SUM(C94:E94)","v":0},{"$f":"C29","v":0},{"$f":"C66","v":0},{"$f":"+G94+H94","v":0},null,null,null,{"$f":"SUM(I94:L94)","v":0},{"$f":"F94-M94","v":0}]
["Formula aminoacídica (FAA)",null,null,null,null,0,{"$f":"C30","v":0},{"$f":"C67","v":0},0,null,null,null,0,0]
["Total (Kg)",null,{"$f":"SUM(C87:C95)","v":0},{"$f":"SUM(D87:D95)","v":0},0,0,0,0,0,0,0,0,0,0,0,0]
["Sección F: Número de reevaluaciones antropométricas a población del extrasistema"]
["Funcionarios",null,"Reevaluaciones efectuadas según tipo de establecimiento"]
[null,null,"Establecimiento del SS","Establecimiento Municipal"]
["Médico"]
["Enfermera"]
["Nutricionista"]
["Matrona"]
["Auxiliar"]
[]
[]
[]
[]
[]
[]
[]
[]
[]
[]
[]
[]
[]
[]
[]
[]
[]
[]
[]
[]
[]
[]
[]
[]
[]
[]
[]
[]
[]
[]
[]
[]
[]
[]
[]
[]
[]
[]
[]
[]
[]
[]
[]
[]
[]
[]
[]
[]
[]
[]
[]
[]
[{"$f":"SUM(A8:Q104)","v":{"$error":"#REF!"}},null,null,null,null,null,null,null,null,null,null,null,null,null,null,null,null,null,null,null,null,null,null,null,null,null,null,null,null,null,null,{"$f":"SUM(AF1:AI156)","v":0}]

{"sheet":"D16","index":2,"n_rows":205,"n_cols":31,"rows_kept":205,"cut":false,"hidden":false,"merged":[[6,0,6,13],[16,0,17,0],[16,1,16,3],[16,4,16,6],[25,10,27,10],[26,12,27,12],[25,4,27,4],[26,3,27,3],[26,9,27,9],[26,11,27,11],[26,5,27,5],[26,6,27,6],[26,7,27,7],[26,8,27,8],[25,11,25,12],[31,1,31,3],[31,4,31,6],[26,2,27,2],[25,0,27,0],[25,1,27,1],[25,2,25,3],[31,0,32,0],[25,5,25,9]]}
["SERVICIO DE SALUD"]
[{"$f":"CONCATENATE(\"COMUNA: \",NOMBRE!$B$2,\" - \",\"( \",NOMBRE!$C$2,NOMBRE!$D$2,NOMBRE!$E$2,NOMBRE!$F$2,NOMBRE!$G$2,\" )\")","v":"COMUNA:  - (  )"}]
[{"$f":"CONCATENATE(\"ESTABLECIMIENTO/ESTRATEGIA: \",NOMBRE!$B$3,\" - \",\"( \",NOMBRE!$C$3,NOMBRE!$D$3,NOMBRE!$E$3,NOMBRE!$F$3,NOMBRE!$G$3,NOMBRE!$H$3,\" )\")","v":"ESTABLECIMIENTO/ESTRATEGIA:  - (  )"}]
[{"$f":"CONCATENATE(\"MES: \",NOMBRE!$B$6,\" - \",\"( \",NOMBRE!$C$6,NOMBRE!$D$6,\" )\")","v":"MES:  - (  )"}]
[{"$f":"CONCATENATE(\"AÑO: \",NOMBRE!$B$7)","v":"AÑO: 2018"}]
[]
["REM-D.16.    Programa de Alimentación Complementaria del Adulto Mayor (PACAM)"]
["Sección A: PACAM - Cantidad distribuida (kg)"]
["Grupo Programático","Crema Años Dorados (CAD)","Bebida Láctea Años Dorados (BLAD)"]
["70 años y más (independiente del motivo de ingreso)",null,null,{"$f":"$AA10&\" \"&$AB10","v":" "},null,null,null,null,null,null,null,null,null,null,null,null,null,null,null,null,null,null,null,null,null,null,{"$f":"IF($B10<>$B19,\" No olvide que el Nº de personas que retira Crema Años Dorados (CAD) en la sección B debe ser igual a los Kilos que retiran en Seccion A.- \",\"\")","v":""},{"$f":"IF(C10<>E19,\" No olvide que el Nº de personas que retira Bebida Láctea Años Dorados (BLAD) en la sección B debe ser igual a los Kilos que retiran en Seccion A.-\",\"\")","v":""},null,{"$f":"IF($B10<>$B19,1,0)","v":0},{"$f":"IF(C10<>E19,1,0)","v":0}]
["65 - 69 años con alteración de la funcionalidad",null,null,{"$f":"$AA11&\" \"&$AB11","v":" "},null,null,null,null,null,null,null,null,null,null,null,null,null,null,null,null,null,null,null,null,null,null,{"$f":"IF($B11<>$B20,\" No olvide que el Nº de personas que retira Crema Años Dorados (CAD) en la sección B debe ser igual a los Kilos que retiran en Seccion A.- \",\"\")","v":""},{"$f":"IF(C11<>E20,\" No olvide que el Nº de personas que retira Bebida Láctea Años Dorados (BLAD) en la sección B debe ser igual a los Kilos que retiran en Seccion A.-\",\"\")","v":""},null,{"$f":"IF($B11<>$B20,1,0)","v":0},{"$f":"IF(C11<>E20,1,0)","v":0}]
["65 - 69 años en programa social (Vínculos, Familia, Calle u otro)",null,null,{"$f":"$AA12&\" \"&$AB12","v":" "},null,null,null,null,null,null,null,null,null,null,null,null,null,null,null,null,null,null,null,null,null,null,"","",null,0,0]
["60 - 69 años con tuberculosis",null,null,{"$f":"$AA13&\" \"&$AB13","v":" "},null,null,null,null,null,null,null,null,null,null,null,null,null,null,null,null,null,null,null,null,null,null,"","",null,0,0]
["60 - 69 años en ELEAM autorizado o similar",null,null,{"$f":"$AA14&\" \"&$AB14","v":" "},null,null,null,null,null,null,null,null,null,null,null,null,null,null,null,null,null,null,null,null,null,null,"","",null,{"$f":"IF($B14<>$B23,1,0)","v":0},0]
["TOTAL",{"$f":"SUM(B10:B14)","v":0},{"$f":"SUM(C10:C14)","v":0}]
["Sección B: PACAM - Número de personas que retiran"]
["Grupo Programático","Crema Años Dorados (CAD)",null,null,"Bebida Láctea Años Dorados (BLAD)"]
[null,"Personas \n(que retiran en el mes)","Ingresos del mes","Inasistentes del mes","Personas \n(que retiran en el mes)","Ingresos del mes","Inasistentes del mes"]
["70 años y más (independiente del motivo de ingreso",null,null,null,null,null,null,{"$f":"$AA19&\" \"&$AB19","v":" "},null,null,null,null,null,null,null,null,null,null,null,null,null,null,null,null,null,null,{"$f":"IF(B19<>B10,\" No olvide que el Nº de personas que retira Crema Años Dorados (CAD) debe ser igual a los Kilos que retiran en Seccion A.- \",\"\")","v":""},{"$f":"IF(C10<>E19,\" No olvide que el Nº de personas que retira Bebida Láctea Años Dorados (BLAD) debe ser igual a los Kilos que retiran en Seccion A.-\",\"\")","v":""},null,{"$f":"IF($B19=0,\"\",IF($B10=\"\",IF($B19=\"\",0,1),\"\"))","v":""},{"$f":"IF($E19=0,\"\",IF($C10=\"\",IF($E19=\"\",0,1),\"\"))","v":""}]
["65 - 69 años con alteración de la funcionalidad",null,null,null,null,null,null,{"$f":"$AA20&\" \"&$AB20","v":" "},null,null,null,null,null,null,null,null,null,null,null,null,null,null,null,null,null,null,{"$f":"IF(B20<>B11,\" No olvide que el Nº de personas que retira Crema Años Dorados (CAD) debe ser igual a los Kilos que retiran en Seccion A.- \",\"\")","v":""},{"$f":"IF(C11<>E20,\" No olvide que el Nº de personas que retira Bebida Láctea Años Dorados (BLAD) debe ser igual a los Kilos que retiran en Seccion A.-\",\"\")","v":""},null,{"$f":"IF($B20=0,\"\",IF($B11=\"\",IF($B20=\"\",0,1),\"\"))","v":""},{"$f":"IF($E20=0,\"\",IF($C11=\"\",IF($E20=\"\",0,1),\"\"))","v":""}]
["65 - 69 años en programa social (Vínculos, Familia, Calle u otro)",null,null,null,null,null,null,{"$f":"$AA21&\" \"&$AB21","v":" "},null,null,null,null,null,null,null,null,null,null,null,null,null,null,null,null,null,null,"","",null,{"$f":"IF($B21=0,\"\",IF($B12=\"\",IF($B21=\"\",0,1),\"\"))","v":""},{"$f":"IF($E21=0,\"\",IF($C12=\"\",IF($E21=\"\",0,1),\"\"))","v":""}]
["60 - 69 años con tuberculosis",null,null,null,null,null,null,{"$f":"$AA22&\" \"&$AB22","v":" "},null,null,null,null,null,null,null,null,null,null,null,null,null,null,null,null,null,null,"","",null,{"$f":"IF($B22=0,\"\",IF($B13=\"\",IF($B22=\"\",0,1),\"\"))","v":""},{"$f":"IF($E22=0,\"\",IF($C13=\"\",IF($E22=\"\",0,1),\"\"))","v":""}]
["60 - 69 años en ELEAM autorizado o similar",null,null,null,null,null,null,{"$f":"$AA23&\" \"&$AB23","v":" "},null,null,null,null,null,null,null,null,null,null,null,null,null,null,null,null,null,null,"","",null,{"$f":"IF($B23=0,\"\",IF($B14=\"\",IF($B23=\"\",0,1),\"\"))","v":""},{"$f":"IF($E23=0,\"\",IF($C14=\"\",IF($E23=\"\",0,1),\"\"))","v":""}]
["TOTAL",{"$f":"SUM(B19:B23)","v":0},0,0,0,0,0]
["Sección C: Existencia y movimiento de productos"]
["Alimentos","Saldo mes anterior","Ingresos",null,"Total disponible","Egresos",null,null,null,null,"Saldo mes siguiente","Necesidades"]
[null,null,"Planta","Por traspaso",null,"Distribuido a beneficiarios","Mermas (Incluye faltantes)","Otros: \n(demostraciones, \ndonaciones, etc.)","Traspaso","Total egresos",null,"Bodega del \nestableci-\nmiento","Bodegas Centrales"]
[]
["Crema Años Dorados (CAD)",null,null,null,{"$f":"SUM(B29:D29)","v":0},{"$f":"B15","v":0},null,null,null,{"$f":"SUM(F29:I29)","v":0},{"$f":"E29-J29","v":0},null,null,null,null,null,null,null,null,null,null,null,null,null,null,null,null,{"$f":"IF((F29+#REF!)=B15,0,1)","v":{"$error":"#REF!"}}]
["Bebida Láctea Años Dorados (BLAD)",null,null,null,{"$f":"SUM(B30:D30)","v":0},{"$f":"C15","v":0},null,null,null,{"$f":"SUM(F30:I30)","v":0},{"$f":"E30-J30","v":0},null,null,null,null,null,null,null,null,null,null,null,null,null,null,null,null,{"$f":"IF((F30+#REF!)=C15,0,1)","v":{"$error":"#REF!"}}]
["Sección D: PACAM - Número de personas que retiran, pertenecientes al PRAIS (incluidos en Sección B)"]
["Grupo Programático","Crema Años Dorados (CAD)",null,null,"Bebida Láctea Años Dorados (BLAD)"]
[null,"Personas \n(que retiran en el mes)","Ingresos del mes","Inasistentes del mes","Personas \n(que retiran en el mes)","Ingresos del mes","Inasistentes del mes"]
["70 años y más (independiente del motivo de ingreso)",null,null,null,null,null,null,{"$f":"$AA34&\" \"&$AB34","v":" "}]
["65 - 69 años con alteración de la funcionalidad",null,null,null,null,null,null,{"$f":"$AA35&\" \"&$AB35","v":" "}]
["65 - 69 años en programa social (Vínculos, Familia, Calle u otro)",null,null,null,null,null,null,{"$f":"$AA36&\" \"&$AB36","v":" "}]
["60 - 69 años con tuberculosis",null,null,null,null,null,null,{"$f":"$AA37&\" \"&$AB37","v":" "}]
["60 - 69 años en ELEAM autorizado o similar",null,null,null,null,null,null,{"$f":"$AA38&\" \"&$AB38","v":" "}]
["TOTAL",{"$f":"SUM(B34:B38)","v":0},0,0,0,0,0]
[]
[]
[]
[]
[]
[]
[]
[]
[]
[]
[]
[]
[]
[]
[]
[]
[]
[]
[]
[]
[]
[]
[]
[]
[]
[]
[]
[]
[]
[]
[]
[]
[]
[]
[]
[]
[]
[]
[]
[]
[]
[]
[]
[]
[]
[]
[]
[]
[]
[]
[]
[]
[]
[]
[]
[]
[]
[]
[]
[]
[]
[]
[]
[]
[]
[]
[]
[]
[]
[]
[]
[]
[]
[]
[]
[]
[]
[]
[]
[]
[]
[]
[]
[]
[]
[]
[]
[]
[]
[]
[]
[]
[]
[]
[]
[]
[]
[]
[]
[]
[]
[]
[]
[]
[]
[]
[]
[]
[]
[]
[]
[]
[]
[]
[]
[]
[]
[]
[]
[]
[]
[]
[]
[]
[]
[]
[]
[]
[]
[]
[]
[]
[]
[]
[]
[]
[]
[]
[]
[]
[]
[]
[]
[]
[]
[]
[]
[]
[]
[]
[]
[]
[]
[]
[]
[]
[]
[]
[]
[]
[]
[]
[]
[]
[]
[{"$f":"SUM(A8:N39)","v":0},null,null,null,null,null,null,null,null,null,null,null,null,null,null,null,null,null,null,null,null,null,null,null,null,null,null,null,null,{"$f":"SUM(AD1:AE204)","v":0}]

{"sheet":"Control","index":3,"n_rows":100,"n_cols":13,"rows_kept":100,"cut":false,"hidden":false,"merged":[]}
[null,null,"NÚMERO DE ERRORES  SEGÚN :"]
[null,null,"A.- OMISIÓN DE INFORMACIÓN"]
[null,null,"B: VALIDACIÓN DE LOS DATOS"]
[null,null,{"$f":"CONCATENATE(\"ESTABLECIMIENTO/ESTRATEGIA: \",NOMBRE!B3,\" - \",\"( \",NOMBRE!C3,NOMBRE!D3,NOMBRE!E3,NOMBRE!F3,NOMBRE!G3,NOMBRE!H3,\" )\")","v":"ESTABLECIMIENTO/ESTRATEGIA:  - (  )"}]
[null,null,null,"REM","REM\nSIN DATOS","CAUSAL","OTRA CAUSAL (indicar)"]
[null,null,null,"HOJA NOMBRE",{"$f":"IF((NOMBRE!AG7)=0,\"\",\"SIN INFORMACIÓN\")","v":"SIN INFORMACIÓN"},null,null,null,null,null,null,null,"Licencia médica"]
[null,null,null,"REM 15",{"$f":"IF(('D15'!A157)=0,\"SIN INFORMACIÓN\",\"\")","v":{"$error":"#REF!"}},null,null,null,null,null,null,null,"Feriado Legal"]
[null,null,null,"REM16",{"$f":"IF(('D16'!A205)=0,\"SIN INFORMACIÓN\",\"\")","v":"SIN INFORMACIÓN"},null,null,null,null,null,null,null,"No hubo profesional"]
[null,null,null,null,null,null,null,null,null,null,null,null,"No corresponde REM"]
[null,null,null,"TOTAL REM SIN INFORMACIÓN",{"$f":"COUNTIF(E6:E8,\"SIN INFORMACIÓN\")","v":2},null,null,null,null,null,null,null,"Otra causa justificada"]
[null,null,null,"TOTAL DE ERRORES REM 15",{"$f":"+'D15'!AF157","v":0}]
[null,null,null,"TOTAL DE ERRORES REM 16",{"$f":"+'D16'!AD205","v":0}]
[null,null,null,"TOTAL DE ERRORES",{"$f":"SUM(E10:E12)","v":2}]
[]
[]
[]
[]
[null,null,null,null,{"$f":"NOMBRE!AG7","v":5}]
[]
[]
[]
[]
[]
[]
[]
[]
[]
[]
[]
[]
[]
[]
[]
[]
[]
[]
[]
[]
[]
[]
[]
[]
[]
[]
[]
[]
[]
[]
[]
[]
[]
[]
[]
[]
[]
[]
[]
[]
[]
[]
[]
[]
[]
[]
[]
[]
[]
[]
[]
[]
[]
[]
[]
[]
[]
[]
[]
[]
[]
[]
[]
[]
[]
[]
[]
[]
[]
[]
[]
[]
[]
[]
[]
[]
[]
[]
[]
[]
[]
[null,null,null,null,{"$f":"NOMBRE!AG7","v":5}]

{"sheet":"MACROS","index":4,"n_rows":14,"n_cols":2,"rows_kept":14,"cut":false,"hidden":false,"merged":[[1,1,1,7],[9,1,10,7]]}
[]
[null,"Hoja de Macros y Utilidades"]
[]
[null,{"$f":"CONCATENATE(\"ESTABLECIMIENTO/ESTRATEGIA: \",NOMBRE!B3,\" - \",\"( \",NOMBRE!C3,NOMBRE!D3,NOMBRE!E3,NOMBRE!F3,NOMBRE!G3,NOMBRE!H3,NOMBRE!I3,\" )\")","v":"ESTABLECIMIENTO/ESTRATEGIA:  - ( Falta Cód. Estab. )"}]
[]
[]
[null,"COPIA Y PEGA A VALORES TODAS LAS HOJAS\nGRABELO CON OTRO NOMBRE"]
[]
[]
[null,{"$f":"IF(Control!E13>0,\"ANTES DE EJECUTAR SUS MACROS REVISE LA HOJA CONTROL, EXISTEN ERRORES\",\"\")","v":"ANTES DE EJECUTAR SUS MACROS REVISE LA HOJA CONTROL, EXISTEN ERRORES"}]
[]
[]
[]
[null,"Contraseña para copia del archivo :DEIS"]